fUST/lending_fUST_20250817
["ID","MTS","AMOUNT","RATE_DAILY","PERIOD"]
[379930794,1755442263304,-480.0,0.00020111,2]
[379930796,1755442263314,-480.0,0.00020111,2]
[379930798,1755442263324,-480.0,0.00020111,2]
[379930800,1755442263334,-480.0,0.00020111,2]
[379930801,1755442263343,-7675.82,0.00020111,2]
[379930803,1755442263351,-990.44,0.00020111,2]
[379930805,1755442263360,-5032.79,0.00020111,2]
[379930807,1755442263370,-151.0,0.00020112,2]
[379930809,1755442263380,-151.0,0.00020112,2]
[379930811,1755442263392,-151.0,0.00020112,2]
[379930813,1755442263403,-151.0,0.00020112,2]
[379930816,1755442263413,-230.217252,0.00020112,2]
[379930818,1755442263423,-151.0,0.00020112,2]
[379930819,1755442263434,-151.0,0.00020112,2]
[379930821,1755442263443,-151.0,0.00020112,2]
[379930823,1755442263453,-151.0,0.00020112,2]
[379930825,1755442263462,-154.489964,0.00020112,2]
[379930827,1755442263472,-151.0,0.00020112,2]
[379930829,1755442263482,-151.0,0.00020112,2]
[379930831,1755442263492,-466.476595,0.00020112,2]
[379930833,1755442263502,-466.476595,0.00020112,2]
[379930835,1755442263511,-151.0,0.00020112,2]
[379930837,1755442263521,-151.0,0.00020112,2]
[379930839,1755442263531,-480.0,0.00020112,2]
[379930841,1755442263541,-480.0,0.00020112,2]
[379930843,1755442263551,-480.0,0.00020112,2]
[379930845,1755442263562,-480.0,0.00020112,2]
[379930847,1755442263572,-480.0,0.00020112,2]
[379930849,1755442263581,-788.99,0.00020112,2]
[379930851,1755442263591,-613.42,0.00020112,2]
[379930853,1755442263601,-581.88,0.00020112,2]
[379930855,1755442263614,-151.0,0.00020112,2]
[379930857,1755442263624,-151.0,0.00020112,2]
[379930859,1755442263634,-480.0,0.00020112,2]
[379930861,1755442263644,-556.16,0.00020112,2]
[379930863,1755442263655,-1673.56,0.00020112,2]
[379930865,1755442263665,-480.0,0.00020112,2]
[379930867,1755442263674,-2358.67,0.00020112,2]
[379930869,1755442263684,-1149.0,0.00020126,2]
[379930871,1755442263695,-420.0,0.00020126,2]
[379930873,1755442263704,-397.0,0.00020126,2]
[379930875,1755442263714,-156.0,0.00020126,2]
[379930877,1755442263724,-151.0,0.00020135,2]
[379930879,1755442263733,-18502.69577858,0.00020135,2]
[379930881,1755442263743,-1500.0,0.00020135,2]
[379930883,1755442263753,-1500.0,0.00020135,2]
[379930885,1755442263763,-170.005422,0.0002014,2]
[379930887,1755442263772,-151.0,0.0002014,2]
[379930889,1755442263782,-153.0,0.0002014,2]
[379930891,1755442263792,-153.0,0.0002014,2]
[379930898,1755442263900,-153.0,0.0002014,2]
[379930899,1755442263911,-153.0,0.0002014,2]
[379930900,1755442263921,-159.4992174,0.0002014,2]
[379930901,1755442263931,-153.0,0.0002014,2]
[379930902,1755442263941,-153.0,0.0002014,2]
[379930903,1755442263951,-153.0,0.0002014,2]
[379930904,1755442263962,-153.0,0.0002014,2]
[379930905,1755442263972,-260.0,0.00020148,2]
[379930907,1755442263982,-151.402041,0.00020158,2]
[379930909,1755442263991,-502.775489,0.00020158,2]
[379930911,1755442264001,-502.775489,0.00020158,2]
[379930913,1755442264011,-151.0,0.00020158,2]
[379930915,1755442264020,-154.785655,0.00020163,2]
[379930917,1755442264029,-264.6949907,0.00020163,2]
[379930919,1755442264039,-153.0,0.00020163,2]
[379930920,1755442264049,-153.0,0.00020163,2]
[379930922,1755442264058,-153.0,0.00020163,2]
[379930924,1755442264069,-548.553886,0.00020187,2]
[379930926,1755442264079,-420.5,0.00020214,2]
[379930929,1755442264088,-1680.0,0.00020223,2]
[379930930,1755442264099,-200.9,0.00020242,2]
[379930932,1755442264109,-527.36,0.00020287,2]
[379930934,1755442264119,-912.72,0.00020287,2]
[379930936,1755442264128,-480.0,0.00020287,2]
[379930938,1755442264138,-563.11,0.00020287,2]
[379930941,1755442264149,-480.0,0.00020287,2]
[379930943,1755442264159,-480.0,0.00020287,2]
[379930945,1755442264168,-591.29,0.00020287,2]
[379930947,1755442264178,-480.0,0.00020287,2]
[379930949,1755442264188,-151.0,0.00020287,2]
[379930951,1755442264197,-1163.69,0.00020287,2]
[379930952,1755442264206,-480.0,0.00020287,2]
[379930955,1755442264216,-480.0,0.00020287,2]
[379930957,1755442264226,-456.70706952,0.00020287,2]
[379930959,1755442264235,-480.0,0.00020287,2]
[379930961,1755442264246,-908.19,0.00020287,2]
[379930963,1755442264256,-928.64,0.00020287,2]
[379930965,1755442264266,-480.0,0.00020287,2]
[379930967,1755442264276,-480.0,0.00020287,2]
[379930969,1755442264286,-1949.06,0.00020287,2]
[379930971,1755442264295,-709.65,0.00020287,2]
[379930973,1755442264306,-480.0,0.00020287,2]
[379930975,1755442264316,-659.52,0.00020287,2]
[379930977,1755442264326,-480.0,0.00020287,2]
[379930979,1755442264336,-2225.78,0.00020287,2]
[379930981,1755442264346,-480.0,0.00020287,2]
[379930983,1755442264356,-1000.32,0.00020287,2]
[379930985,1755442264366,-480.0,0.00020287,2]
[379930987,1755442264375,-1436.82,0.00020287,2]
[379930989,1755442264385,-6061.46,0.00020287,2]
[379930991,1755442264395,-480.0,0.00020287,2]
[379930993,1755442264404,-1175.2,0.00020287,2]
[379930995,1755442264413,-763.93,0.00020287,2]
[379930997,1755442264422,-480.0,0.00020287,2]
[379930999,1755442264432,-526.35,0.00020287,2]
[379931001,1755442264442,-480.0,0.00020287,2]
[379931003,1755442264451,-480.0,0.00020287,2]
[379931005,1755442264461,-715.83,0.00020287,2]
[379931007,1755442264471,-480.0,0.00020287,2]
[379931009,1755442264480,-695.09,0.00020287,2]
[379931011,1755442264490,-151.0,0.00020287,2]
[379931013,1755442264499,-494.32,0.00020287,2]
[379931015,1755442264509,-480.0,0.00020287,2]
[379931017,1755442264519,-480.0,0.00020287,2]
[379931019,1755442264529,-591.54,0.00020287,2]
[379931021,1755442264539,-504.66,0.00020287,2]
[379931023,1755442264548,-151.0,0.000203,3]
[379931025,1755442264557,-658.0,0.00020308,2]
[379931027,1755442264566,-200.0,0.0002031,2]
[379931029,1755442264576,-1762.0,0.00020333,2]
[379931031,1755442264585,-246.90509545,0.00020333,2]
[379931033,1755442264595,-825.57944472,0.00020333,2]
[379931035,1755442264606,-1762.0,0.00020333,2]
[379931037,1755442264617,-3960.0,0.00020355,2]
[379931039,1755442264627,-159.71095547,0.00020356,2]
[379931041,1755442264636,-806.69285324,0.00020368,2]
[379931043,1755442264646,-420.5,0.00020381,2]
[379931045,1755442264658,-521.32,0.00020382,2]
[379931047,1755442264667,-480.0,0.00020382,2]
[379931049,1755442264678,-1819.3,0.00020382,2]
[379931052,1755442264687,-480.0,0.00020383,2]
[379931054,1755442264697,-480.0,0.00020383,2]
[379931056,1755442264707,-3256.49,0.00020383,2]
[379931058,1755442264717,-480.0,0.00020384,2]
[379931059,1755442264727,-480.0,0.00020384,2]
[379931062,1755442264737,-480.0,0.00020384,2]
[379931063,1755442264754,-698.95,0.00020384,2]
[379931066,1755442264780,-480.0,0.00020384,2]
[379931067,1755442264792,-480.0,0.00020384,2]
[379931070,1755442264801,-687.45,0.00020384,2]
[379931072,1755442264811,-468.1,0.00020384,2]
[379931074,1755442264823,-599.94,0.00020384,2]
[379931076,1755442264837,-480.0,0.00020384,2]
[379931078,1755442264848,-549.85,0.00020384,2]
[379931080,1755442264859,-480.0,0.00020384,2]
[379931082,1755442264869,-971.72,0.00020384,2]
[379931084,1755442264878,-480.0,0.00020384,2]
[379931086,1755442264888,-480.0,0.00020384,2]
[379931088,1755442264898,-573.88,0.00020384,2]
[379931090,1755442264908,-480.0,0.00020384,2]
[379931092,1755442264917,-173.064335,0.00020384,2]
[379931094,1755442264927,-173.064335,0.00020384,2]
[379931096,1755442264937,-719.18,0.00020384,2]
[379931098,1755442264948,-480.0,0.00020384,2]
[379931100,1755442264957,-480.0,0.00020384,2]
[379931102,1755442264967,-480.0,0.00020384,2]
[379931104,1755442264976,-480.0,0.00020384,2]
[379931106,1755442264985,-584.35,0.00020384,2]
[379931108,1755442264995,-480.0,0.00020384,2]
[379931110,1755442265005,-480.0,0.00020384,2]
[379931112,1755442265015,-480.0,0.00020384,2]
[379931114,1755442265024,-480.0,0.00020384,2]
[379931116,1755442265033,-480.0,0.00020384,2]
[379931118,1755442265043,-492.35,0.00020384,2]
[379931120,1755442265052,-258.097144,0.00020384,2]
[379931122,1755442265062,-151.0,0.00020384,2]
[379931124,1755442265072,-480.0,0.00020384,2]
[379931126,1755442265081,-480.0,0.00020384,2]
[379931128,1755442265091,-151.0,0.00020385,2]
[379931130,1755442265100,-168.591531,0.00020385,2]
[379931132,1755442265110,-151.0,0.00020385,2]
[379931134,1755442265119,-151.0,0.00020385,2]
[379931136,1755442265128,-480.0,0.00020385,2]
[379931138,1755442265137,-480.0,0.00020385,2]
[379931140,1755442265148,-151.0,0.00020385,2]
[379931142,1755442265157,-323.570503,0.00020385,2]
[379931144,1755442265166,-323.570503,0.00020385,2]
[379931146,1755442265175,-894.92,0.00020385,2]
[379931148,1755442265185,-480.0,0.00020385,2]
[379931150,1755442265193,-151.0,0.00020385,2]
[379931152,1755442265203,-480.0,0.00020385,2]
[379931154,1755442265212,-480.0,0.00020385,2]
[379931156,1755442265221,-151.0,0.00020385,2]
[379931158,1755442265231,-480.0,0.00020385,2]
[379931160,1755442265241,-480.0,0.00020385,2]
[379931162,1755442265250,-7675.82,0.00020385,2]
[379931164,1755442265260,-286.886124,0.00020385,2]
[379931166,1755442265270,-286.886124,0.00020385,2]
[379931168,1755442265279,-990.44,0.00020385,2]
[379931170,1755442265288,-5032.79,0.00020385,2]
[379931172,1755442265298,-480.0,0.00020386,2]
[379931174,1755442265307,-480.0,0.00020386,2]
[379931176,1755442265317,-480.0,0.00020386,2]
[379931178,1755442265326,-480.0,0.00020386,2]
[379931180,1755442265336,-788.99,0.00020386,2]
[379931182,1755442265345,-613.42,0.00020386,2]
[379931184,1755442265355,-581.88,0.00020386,2]
[379931186,1755442265365,-480.0,0.00020386,2]
[379931188,1755442265374,-1673.56,0.00020386,2]
[379931190,1755442265384,-480.0,0.00020386,2]
[379931192,1755442265393,-2358.67,0.00020386,2]
[379931194,1755442265402,-170.005422,0.00020392,2]
[379931196,1755442265412,-151.0,0.00020392,2]
[379931198,1755442265422,-168.504209,0.00020395,2]
[379931200,1755442265431,-658.0,0.00020398,2]
[379931202,1755442265440,-200.0,0.00020399,2]
[379931204,1755442265449,-151.0,0.00020403,2]
[379931206,1755442265459,-151.0,0.00020403,2]
[379931208,1755442265468,-151.0,0.00020403,2]
[379931210,1755442265477,-151.0,0.00020403,2]
[379931212,1755442265488,-8827.72446853,0.00020403,2]
[379931214,1755442265498,-413.4927831,0.00020404,2]
[379931216,1755442265508,-413.4927831,0.00020404,2]
[379931218,1755442265517,-1500.0,0.00020416,2]
[379931220,1755442265526,-2000.0,0.00020416,2]
[379931222,1755442265536,-2000.0,0.00020416,2]
[379931224,1755442265545,-2000.0,0.00020416,2]
[379931226,1755442265555,-160.0,0.00020471,3]
[379931228,1755442265564,-200.0,0.00020472,2]
[379931230,1755442265573,-500.0,0.00020473,2]
[379931231,1755442265583,-500.0,0.00020473,2]
[379931233,1755442265592,-500.0,0.00020473,2]
[379931244,1755442265690,-500.0,0.00020473,2]
[379931246,1755442265700,-500.0,0.00020473,2]
[379931248,1755442265709,-500.0,0.00020473,2]
[379931250,1755442265720,-500.0,0.00020473,2]
[379931252,1755442265729,-500.0,0.00020473,2]
[379931254,1755442265738,-338.40442225,0.00020473,2]
[379931256,1755442265747,-500.0,0.00020473,2]
[379931258,1755442265757,-500.0,0.00020473,2]
[379931260,1755442265766,-584.71166628,0.00020473,2]
[379931262,1755442265776,-500.0,0.00020473,2]
[379931264,1755442265785,-500.0,0.00020473,2]
[379931266,1755442265795,-500.0,0.00020473,2]
[379931268,1755442265804,-500.0,0.00020473,2]
[379931270,1755442265813,-500.0,0.00020473,2]
[379931272,1755442265822,-158.60123121,0.00020473,2]
[379931275,1755442265832,-500.0,0.00020473,2]
[379931277,1755442265842,-160.20015304,0.00020473,2]
[379931279,1755442265850,-500.0,0.00020473,2]
[379931281,1755442265860,-500.0,0.00020473,2]
[379931283,1755442265870,-321.3963265,0.00020473,2]
[379931285,1755442265879,-500.0,0.00020473,2]
[379931287,1755442265888,-500.0,0.00020473,2]
[379931288,1755442265898,-500.0,0.00020473,2]
[379931291,1755442265908,-500.0,0.00020473,2]
[379931293,1755442265917,-500.0,0.00020473,2]
[379931295,1755442265926,-500.0,0.00020473,2]
[379931297,1755442265936,-500.0,0.00020473,2]
[379931298,1755442265945,-632.88952301,0.00020473,2]
[379931301,1755442265955,-500.0,0.00020473,2]
[379931302,1755442265964,-500.0,0.00020473,2]
[379931304,1755442265973,-500.0,0.00020473,2]
[379931306,1755442265982,-500.0,0.00020473,2]
[379931309,1755442265992,-181.25139885,0.00020473,2]
[379931311,1755442266002,-151.0,0.00020473,2]
[379931313,1755442266011,-151.0,0.00020473,2]
[379931315,1755442266020,-205.217017,0.00020473,2]
[379931317,1755442266030,-151.0,0.00020473,2]
[379931319,1755442266039,-151.0,0.00020473,2]
[379931321,1755442266049,-151.0,0.00020473,2]
[379931322,1755442266058,-204.815284,0.00020473,2]
[379931324,1755442266067,-204.815284,0.00020473,2]
[379931326,1755442266077,-151.0,0.00020473,2]
[379931328,1755442266086,-151.0,0.00020473,2]
[379931330,1755442266096,-151.0,0.00020487,2]
[379931332,1755442266105,-160.0,0.00020499,2]
[379931334,1755442266115,-201.64454251,0.00020499,2]
[379931337,1755442266124,-247621.81,0.000205,2]
[379931338,1755442266134,-170.005422,0.000205,2]
[379931340,1755442266144,-170.005422,0.000205,2]
[379931342,1755442266155,-170.005422,0.000205,2]
[379931344,1755442266164,-151.0,0.000205,2]
[379931346,1755442266173,-151.0,0.000205,2]
[379931348,1755442266183,-177.546223,0.000205,2]
[379931350,1755442266192,-160.226413,0.000205,2]
[379931352,1755442266201,-151.0,0.000205,2]
[379931354,1755442266210,-951.6485,0.000205,2]
[379931357,1755442266220,-951.6485,0.000205,2]
[379931359,1755442266230,-151.0,0.000205,2]
[379931361,1755442266239,-151.0,0.000205,2]
[379931363,1755442266248,-151.0,0.000205,2]
[379931364,1755442266258,-502.775489,0.000205,2]
[379931366,1755442266267,-151.0,0.000205,2]
[379931368,1755442266276,-176288.7,0.000205,2]
[379931370,1755442266285,-502.775489,0.000205,2]
[379931372,1755442266294,-151.0,0.000205,2]
[379931374,1755442266303,-151.0,0.000205,2]
[379931376,1755442266313,-151.0,0.000205,2]
[379931378,1755442266322,-151.0,0.000205,2]
[379931381,1755442266332,-242816.97,0.000205,2]
[379931382,1755442266341,-151.0,0.000205,2]
[379931384,1755442266350,-151.0,0.000205,2]
[379931387,1755442266360,-151.0,0.000205,2]
[379931389,1755442266369,-167.8,0.000205,2]
[379931390,1755442266379,-167.8,0.000205,2]
[379931392,1755442266388,-397.7164,0.000205,2]
[379931395,1755442266399,-151.0,0.000205,2]
[379931397,1755442266408,-151.0,0.000205,2]
[379931398,1755442266417,-151.0,0.000205,2]
[379931401,1755442266427,-151.0,0.000205,2]
[379931403,1755442266437,-151.0,0.000205,2]
[379931405,1755442266446,-151.0,0.000205,2]
[379931407,1755442266455,-151.0,0.000205,2]
[379931409,1755442266465,-203.97,0.000205,2]
[379931410,1755442266475,-781.344543,0.000205,2]
[379931413,1755442266484,-781.344543,0.000205,2]
[379931415,1755442266495,-389.09212,0.000205,2]
[379931417,1755442266504,-389.09212,0.000205,2]
[379931418,1755442266514,-389.09212,0.000205,2]
[379931420,1755442266523,-781.344543,0.000205,2]
[379931422,1755442266532,-781.344543,0.000205,2]
[379931424,1755442266542,-389.09212,0.000205,2]
[379931426,1755442266551,-389.09212,0.000205,2]
[379931428,1755442266560,-151.0,0.000205,2]
[379931430,1755442266570,-389.09212,0.000205,2]
[379931432,1755442266579,-151.0,0.000205,2]
[379931434,1755442266588,-151.0,0.000205,2]
[379931436,1755442266598,-151.0,0.000205,2]
[379931438,1755442266611,-151.0,0.000205,2]
[379931440,1755442266620,-151.0,0.000205,2]
[379931442,1755442266630,-151.0,0.000205,2]
[379931444,1755442266640,-687.648653,0.000205,2]
[379931446,1755442266653,-687.648653,0.000205,2]
[379931448,1755442266662,-151.0,0.000205,2]
[379931450,1755442266672,-222.616453,0.000205,2]
[379931452,1755442266682,-151.0,0.000205,2]
[379931455,1755442266692,-151.0,0.000205,2]
[379931457,1755442266702,-151.0,0.000205,2]
[379931459,1755442266711,-151.0,0.000205,2]
[379931461,1755442266721,-151.0,0.000205,2]
[379931462,1755442266730,-151.0,0.000205,2]
[379931465,1755442266741,-151.0,0.000205,2]
[379931467,1755442266751,-151.0,0.000205,2]
[379931469,1755442266760,-151.0,0.000205,2]
[379931471,1755442266770,-151.0,0.000205,2]
[379931472,1755442266779,-151.0,0.000205,2]
[379931474,1755442266789,-151.0,0.000205,2]
[379931476,1755442266798,-151.0,0.000205,2]
[379931478,1755442266807,-466.476595,0.000205,2]
[379931480,1755442266816,-466.476595,0.000205,2]
[379931482,1755442266826,-151.0,0.000205,2]
[379931484,1755442266835,-151.0,0.000205,2]
[379931486,1755442266845,-151.0,0.000205,2]
[379931488,1755442266854,-151.0,0.000205,2]
[379931490,1755442266864,-151.0,0.000205,2]
[379931493,1755442266873,-151.0,0.000205,2]
[379931495,1755442266883,-151.0,0.000205,2]
[379931496,1755442266892,-214.211183,0.000205,2]
[379931499,1755442266901,-151.0,0.000205,2]
[379931501,1755442266912,-151.0,0.000205,2]
[379931503,1755442266921,-151.0,0.000205,2]
[379931504,1755442266930,-151.0,0.000205,2]
[379931506,1755442266940,-151.0,0.000205,2]
[379931508,1755442266949,-151.0,0.000205,2]
[379931510,1755442266959,-273.452734,0.000205,2]
[379931513,1755442266968,-273.452734,0.000205,2]
[379931515,1755442266977,-151.0,0.000205,2]
[379931516,1755442266987,-151.0,0.000205,2]
[379931519,1755442266996,-201.849569,0.000205,2]
[379931520,1755442267006,-273.452734,0.000205,2]
[379931522,1755442267015,-273.452734,0.000205,2]
[379931524,1755442267024,-204.815284,0.000205,2]
[379931526,1755442267033,-151.0,0.000205,2]
[379931528,1755442267043,-204.815284,0.000205,2]
[379931530,1755442267052,-151.0,0.000205,2]
[379931532,1755442267061,-204.815284,0.000205,2]
[379931534,1755442267071,-151.0,0.000205,2]
[379931536,1755442267080,-151.0,0.000205,2]
[379931539,1755442267089,-151.0,0.000205,2]
[379931541,1755442267099,-151.0,0.000205,2]
[379931543,1755442267108,-151.0,0.000205,2]
[379931545,1755442267118,-151.0,0.000205,2]
[379931547,1755442267127,-151.0,0.000205,2]
[379931549,1755442267137,-229.591592,0.000205,2]
[379931551,1755442267147,-204.815284,0.000205,2]
[379931553,1755442267157,-204.815284,0.000205,2]
[379931555,1755442267166,-204.815284,0.000205,2]
[379931557,1755442267175,-151.0,0.000205,2]
[379931559,1755442267184,-151.0,0.000205,2]
[379931570,1755442267195,-151.0,0.000205,2]
[379931572,1755442267289,-151.0,0.000205,2]
[379931574,1755442267299,-151.0,0.000205,2]
[379931576,1755442267308,-151.0,0.000205,2]
[379931578,1755442267318,-151.0,0.000205,2]
[379931580,1755442267328,-323.570503,0.000205,2]
[379931582,1755442267337,-323.570503,0.000205,2]
[379931584,1755442267346,-323.570503,0.000205,2]
[379931586,1755442267356,-323.570503,0.000205,2]
[379931588,1755442267365,-323.570503,0.000205,2]
[379931590,1755442267374,-323.570503,0.000205,2]
[379931592,1755442267384,-151.0,0.000205,2]
[379931594,1755442267394,-151.0,0.000205,2]
[379931596,1755442267404,-151.0,0.000205,2]
[379931599,1755442267414,-173.064335,0.000205,2]
[379931601,1755442267424,-173.064335,0.000205,2]
[379931602,1755442267434,-173.064335,0.000205,2]
[379931604,1755442267444,-173.064335,0.000205,2]
[379931606,1755442267453,-173.064335,0.000205,2]
[379931608,1755442267462,-173.064335,0.000205,2]
[379931611,1755442267471,-151.0,0.000205,2]
[379931613,1755442267481,-151.0,0.000205,2]
[379931615,1755442267490,-151.0,0.000205,2]
[379931616,1755442267500,-151.0,0.000205,2]
[379931619,1755442267509,-151.0,0.000205,2]
[379931621,1755442267518,-151.0,0.000205,2]
[379931623,1755442267529,-151.0,0.000205,2]
[379931624,1755442267538,-151.0,0.000205,2]
[379931627,1755442267548,-286.886124,0.000205,2]
[379931628,1755442267557,-286.886124,0.000205,2]
[379931630,1755442267566,-286.886124,0.000205,2]
[379931632,1755442267576,-286.886124,0.000205,2]
[379931634,1755442267585,-286.886124,0.000205,2]
[379931636,1755442267594,-286.886124,0.000205,2]
[379931638,1755442267603,-151.0,0.000205,2]
[379931640,1755442267616,-152.373275,0.000205,2]
[379931643,1755442267627,-191.565964,0.000205,2]
[379931645,1755442267637,-265.770524,0.000205,2]
[379931647,1755442267647,-923.64953265,0.00020521,2]
[379931648,1755442267657,-1000.0,0.00020521,2]
[379931651,1755442267667,-1000.0,0.00020521,2]
[379931652,1755442267676,-1000.0,0.00020521,2]
[379931655,1755442267686,-541.29110172,0.00020521,2]
[379931657,1755442267695,-1000.0,0.00020521,2]
[379931659,1755442267705,-1000.0,0.00020521,2]
[379931660,1755442267714,-1000.0,0.00020521,2]
[379931663,1755442267724,-574.0813827,0.00020521,2]
[379931664,1755442267733,-1000.0,0.00020521,2]
[379931667,1755442267743,-1000.0,0.00020521,2]
[379931668,1755442267753,-1000.0,0.00020521,2]
[379931671,1755442267762,-1002.59527639,0.00020521,2]
[379931672,1755442267771,-1000.0,0.00020521,2]
[379931675,1755442267781,-527.88255609,0.00020521,2]
[379931677,1755442267791,-500.0,0.00020521,2]
[379931679,1755442267800,-921.49954408,0.00020521,2]
[379931681,1755442267810,-1000.0,0.00020521,2]
[379931683,1755442267819,-1000.0,0.00020521,2]
[379931685,1755442267829,-1000.0,0.00020521,2]
[379931687,1755442267839,-1000.0,0.00020521,2]
[379931689,1755442267848,-1072.43883789,0.00020521,2]
[379931691,1755442267858,-397.54348367,0.00020521,2]
[379931693,1755442267867,-1000.0,0.00020521,2]
[379931695,1755442267877,-1000.8067803,0.00020521,2]
[379931697,1755442267890,-1000.0,0.00020521,2]
[379931699,1755442267901,-646.70786452,0.00020521,2]
[379931701,1755442267910,-1000.0,0.00020521,2]
[379931703,1755442267919,-1000.0,0.00020521,2]
[379931705,1755442267929,-1000.0,0.00020521,2]
[379931707,1755442267939,-1000.0,0.00020521,2]
[379931709,1755442267948,-1000.0,0.00020521,2]
[379931711,1755442267959,-1000.0,0.00020521,2]
[379931713,1755442267968,-1000.0,0.00020521,2]
[379931715,1755442267978,-500.0,0.00020521,2]
[379931717,1755442267987,-1000.0,0.00020521,2]
[379931719,1755442267997,-500.0,0.00020548,2]
[379931721,1755442268007,-151.0,0.00020548,2]
[379931723,1755442268016,-266.38691077,0.00020548,2]
[379931725,1755442268026,-151.0,0.00020548,2]
[379931727,1755442268035,-151.0,0.00020548,2]
[379931729,1755442268045,-151.0,0.00020548,2]
[379931731,1755442268056,-151.0,0.00020548,2]
[379931733,1755442268065,-872.0,0.00020548,2]
[379931735,1755442268075,-151.0,0.00020548,2]
[379931737,1755442268085,-151.0,0.00020548,2]
[379931739,1755442268094,-500.0,0.00020548,2]
[379931740,1755442268104,-151.0,0.00020548,2]
[379931741,1755442268113,-500.0,0.00020548,2]
[379931742,1755442268122,-151.0,0.00020548,2]
[379931743,1755442268132,-500.0,0.00020548,2]
[379931744,1755442268141,-500.0,0.00020548,2]
[379931745,1755442268151,-500.0,0.00020548,2]
[379931746,1755442268161,-200.2887846,0.00020548,2]
[379931747,1755442268170,-175.90280181,0.00020548,2]
[379931748,1755442268180,-151.0,0.00020548,2]
[379931749,1755442268189,-151.0,0.00020548,2]
[379931750,1755442268198,-151.0,0.00020548,2]
[379931751,1755442268208,-151.0,0.00020548,2]
[379931752,1755442268218,-151.0,0.00020548,2]
[379931753,1755442268227,-500.0,0.00020548,2]
[379931754,1755442268236,-500.0,0.00020548,2]
[379931755,1755442268246,-151.0,0.00020548,2]
[379931757,1755442268255,-420.5,0.00020549,2]
[379931758,1755442268264,-527.36,0.00020561,2]
[379931759,1755442268273,-912.72,0.00020561,2]
[379931761,1755442268283,-480.0,0.00020561,2]
[379931763,1755442268292,-563.11,0.00020561,2]
[379931765,1755442268301,-480.0,0.00020561,2]
[379931767,1755442268311,-480.0,0.00020561,2]
[379931769,1755442268320,-591.29,0.00020561,2]
[379931771,1755442268329,-480.0,0.00020561,2]
[379931773,1755442268338,-1163.69,0.00020561,2]
[379931775,1755442268348,-480.0,0.00020561,2]
[379931777,1755442268357,-480.0,0.00020561,2]
[379931779,1755442268366,-480.0,0.00020561,2]
[379931781,1755442268376,-908.19,0.00020561,2]
[379931783,1755442268386,-928.64,0.00020561,2]
[379931785,1755442268396,-480.0,0.00020561,2]
[379931787,1755442268405,-480.0,0.00020561,2]
[379931789,1755442268415,-1949.06,0.00020561,2]
[379931791,1755442268425,-709.65,0.00020561,2]